Cogmind - Beta 13 @@@ ROGUE MODE // 2024.04.22 @ 15:13:15 Player: Fusha Result: Destroyed by Y-64 Sentinel with Wave Gun Performance ------------- Evolutions (6) 3000 Regions Visited (17) 3400 Robots Destroyed (250) 1250 Value Destroyed (9061) 9061 Prototype IDs (13) 260 Alien Tech Used (0) 0 Bonus (2747) 2747 TOTAL SCORE: 19718 Bonus ------- High Alert Combat Kills 1090 Follower Combat Kills 364 Entered Garrisons 600 Used RIF Installer 1000 Friendly Fire -307 Cogmind --------- Core Integrity 0/1150 Matter 300/300 Energy 98/100 System Corruption 10% Temperature Cool (9) Movement Core (50) Location -4/Factory Parts ------- > --- POWER (2) -------- (None) > --- PROPULSION (6) --- (None) > --- UTILITY (7) ------ Hacking Suite > --- WEAPON (4) ------- (None) > --- INVENTORY (5) ---- Matter Compressor (5) Matter Neutralizer Improved Remote Datajack Peak State ------------ > --- POWER ------------ Light Antimatter Reactor Light Antimatter Reactor > --- PROPULSION ------- Flexi-carbon Leg Flexi-carbon Leg Flexi-carbon Leg Wheel Wheel Compact Wheel > --- UTILITY ---------- Advanced Heat Sink Advanced Heat Sink Advanced Heat Sink Improved Coolant Injector 0b10 Decoder Chip [Scout] Improved Medium Armor Plating Improved Hacking Suite > --- WEAPON ----------- Plasma Rifle Plasma Rifle Plasma Rifle KE Penetrator > --- INVENTORY -------- Neutrino Core Heavy Laser Improved Remote Datajack Great Maul [Rating: 89] Favorites ----------- Power Fission Core Engine Cooled Deuterium Engine Power Core Fission Core Reactor Particle Reactor Propulsion Aluminum Leg Leg Aluminum Leg Wheel Wheel Hover Unit Improved Gravmag System Flight Unit VTOL Module Utility Advanced Heat Sink Device Advanced Heat Sink Storage Small Storage Unit Processor 0b10 Decoder Chip [Scout] Hackware Improved Hacking Suite Protection Improved Medium Armor Plating Weapon Enhanced Autogun Energy Gun Plasma Rifle Energy Cannon Phase Cannon Ballistic Gun Enhanced Autogun Ballistic Cannon Magnetic Acceleration Cannon Launcher Precision Grenade Launcher Special Weapon Molecular Deconstructor Impact Weapon Great Maul Slashing Weapon Makeshift Axe Special Melee Weapon Improved Datajack Build | -11 -10 -10 -9 -9 -8 -8 -7 -7 -7 -7 -6 -6 -6 -5 -5 -5 -4 ------- Run | Yrd Mat Min Mat Min Mat Gar Fac Gar Fac Gar Fac Low Low Fac Upp Upp Fac Slots Evolved 12 | . . . 2 . 2 . 2 . . . 2 . . 2 . . 2 Power 1 | . . . . . . . . . . . . . . 1 . . . Propulsion 4 | . . . . . 2 . . . . . 2 . . . . . . Utility 5 | . . . . . . . 2 . . . . . . 1 . . 2 Weapon 2 | . . . 2 . . . . . . . . . . . . . . Parts Attached 276 | 6 . 2 10 12 17 15 6 22 31 15 5 31 14 35 8 . 47 Power 34 | 1 . . 4 1 2 . . 3 5 1 . 2 1 5 . . 9 Engine 14 | 1 . . 4 1 2 . . . 4 . . 1 . 1 . . . Core 12 | . . . . . . . . 2 1 . . 1 . 4 . . 4 Reactor 8 | . . . . . . . . 1 . 1 . . 1 . . . 5 Propulsion 88 | 2 . . 3 7 7 6 2 12 11 5 3 8 4 12 . . 6 Treads . | . . . . . . . . . . . . . . . . . . Leg 70 | 2 . . . 3 7 6 2 12 11 5 3 8 4 1 . . 6 Wheel 9 | . . . . 2 . . . . . . . . . 7 . . . Hover 1 | . . . . . . . . . . . . . . 1 . . . Flight 8 | . . . 3 2 . . . . . . . . . 3 . . . Utility 71 | 1 . 2 . 1 3 7 2 2 8 2 1 6 2 8 7 . 19 Device 47 | . . 2 . 1 2 6 2 2 4 2 1 4 . 3 5 . 13 Storage 6 | 1 . . . . . 1 . . 3 . . 1 . . . . . Processor 9 | . . . . . . . . . . . . 1 2 3 . . 3 Hackware 4 | . . . . . . . . . 1 . . . . 1 . . 2 Protection 5 | . . . . . 1 . . . . . . . . 1 2 . 1 Artifact . | . . . . . . . . . . . . . . . . . . Weapon 83 | 2 . . 3 3 5 2 2 5 7 7 1 15 7 10 1 . 13 Energy Gun 14 | . . . 2 2 1 . . . . . . . 1 1 . . 7 Energy Cannon 3 | . . . . . . . . . . . . 1 . . . . 2 Ballistic Gun 48 | 2 . . 1 1 4 1 2 5 6 3 1 9 4 6 . . 3 Ballistic Cannon 2 | . . . . . . . . . . . . 1 . . . . 1 Launcher 5 | . . . . . . . . . 1 3 . 1 . . . . . Special Weapon 3 | . . . . . . . . . . . . 3 . . . . . Impact Weapon 5 | . . . . . . . . . . . . . 2 3 . . . Slashing Weapon 1 | . . . . . . . . . . . . . . . 1 . . Piercing Weapon . | . . . . . . . . . . . . . . . . . . Special Melee Weapon 2 | . . . . . . 1 . . . 1 . . . . . . . Unidentified Prototypes 13 | . . 1 3 . 2 . . . 3 . . 1 . 2 . . 1 Parts Lost 73 | . . . 6 . . . . . . 2 . 17 5 8 1 . 34 Power 10 | . . . 2 . . . . . . . . 1 1 1 . . 5 Propulsion 23 | . . . 2 . . . . . . . . 5 2 5 . . 9 Utility 14 | . . . . . . . . . . 2 . 3 . . . . 9 Weapon 26 | . . . 2 . . . . . . . . 8 2 2 1 . 11 Highest Loss Streak 21 | . . . 6 . . . . . . 1 . 9 3 4 1 . 21 To Critical Strikes . | . . . . . . . . . . . . . . . . . . Average Slot Usage (%) 86 | . 85 94 64 83 98 100 96 99 99 96 99 87 60 65 93 94 73 Engine 4 | . 14 14 10 11 9 9 7 1 5 . . 3 . . . . . Core 1 | . . . . . . . . 5 . . . . . 5 11 11 2 Reactor 1 | . . . . . . . . . . 6 6 1 1 . . . 5 Leg 23 | . 28 28 4 10 36 36 29 30 29 30 40 34 24 2 . . 10 Wheel 3 | . . . . 5 . . . . . . . . . 8 29 29 9 Flight 1 | . . . 14 6 . . . . . . . . . 4 5 5 . Device 11 | . . 8 2 7 8 9 19 22 16 16 19 13 . 3 9 11 15 Storage 5 | . 14 14 11 11 9 9 7 7 6 7 6 5 . . . . . Processor 3 | . . . . . . . . . . . . 3 10 15 5 5 4 Hackware 2 | . . . . . . . . . 5 3 . . . 1 5 5 6 Energy Gun 3 | . . . 14 22 2 . . . . . . . 4 . 5 5 10 Ballistic Gun 20 | . 28 28 5 9 32 35 30 30 29 25 26 17 18 9 6 5 3 Naked Turns 128 | . . . . . . . . . . . . 87 11 . . . 30 Heaviest Build 60 | 12 12 13 19 21 28 27 31 49 50 59 53 54 28 50 52 52 60 Greatest Support 69 | 20 20 20 20 23 46 38 45 52 62 69 62 62 52 62 62 62 62 Greatest Overweight (x) 3 | . . . 3 2 . 1 . . 2 1 . 3 . 3 . . 2 Average Overweight (x) . | . . . 1 . . . . . . . . . . . . . . Largest Inventory Capacity 10 | 8 8 8 8 8 8 8 8 8 10 10 10 10 5 5 5 5 5 Average Capacity 7 | 6 8 8 8 8 8 8 8 8 8 10 10 9 5 5 5 5 5 Most Carried 10 | 1 3 4 7 8 8 8 8 8 10 10 7 10 5 5 5 4 5 Average Carried 5 | . 1 3 4 4 7 7 6 7 8 8 5 6 1 2 4 4 4 Final Capacity 10 | 8 8 8 8 8 8 8 8 8 10 10 10 5 5 5 5 5 5 Final Carried 10 | 1 3 3 7 8 8 8 8 8 10 8 6 5 . 5 4 4 3 Class Distribution -------------------- 25% | Scavenger-Gunner 22% | Scavenger-Tank 17% | Mutant 12% | Scavenger-Skirmisher 10% | Tank 5% | Scavenger-Mutant 4% | Gunner Dominant Class ---------------- Mutant | -10/Materials Mutant | -10/Mines Mutant | -9/Materials Scavenger-Skirmisher | -9/Mines Scavenger-Gunner | -8/Materials Scavenger-Gunner | -8/Garrison Scavenger-Skirmisher | -7/Factory Scavenger-Gunner | -7/Garrison Tank | -7/Factory Scavenger-Tank | -7/Garrison Scavenger-Tank | -6/Factory Scavenger-Gunner | -6/Lower Caves Gunner | -6/Lower Caves Mutant | -5/Factory Scavenger-Mutant | -5/Upper Caves Scavenger-Mutant | -5/Upper Caves Scavenger-Skirmisher | -4/Factory Resources | -11 -10 -10 -9 -9 -8 -8 -7 -7 -7 -7 -6 -6 -6 -5 -5 -5 -4 ----------- Run | Yrd Mat Min Mat Min Mat Gar Fac Gar Fac Gar Fac Low Low Fac Upp Upp Fac Matter Collected 7995 | 274 20 220 152 149 984 897 166 735 933 645 . 938 254 772 65 . 791 Remotely . | . . . . . . . . . . . . . . . . . . Salvage Created 10675 | 91 66 197 801 420 1300 882 270 1189 1167 708 . 562 116 1141 . . 1765 Parts 568 | 2 9 10 48 39 75 62 14 67 62 37 . 29 5 38 . . 71 Haulers Intercepted 9 | . . . 3 . 3 . . . 2 . . . . 1 . . . Recyclers Shooed 11 | . 1 1 1 . . . . . 2 . . . . 4 . . 2 Parts Field Recycled . | . . . . . . . . . . . . . . . . . . Retrieved Matter . | . . . . . . . . . . . . . . . . . . Parts Self-Destructed 44 | . . . . . . . . . . . . 28 16 . . . . Prevented 2 | . . . . . . . . . . . . 2 . . . . . Kills | -11 -10 -10 -9 -9 -8 -8 -7 -7 -7 -7 -6 -6 -6 -5 -5 -5 -4 ------- Run | Yrd Mat Min Mat Min Mat Gar Fac Gar Fac Gar Fac Low Low Fac Upp Upp Fac Combat Hostiles Destroyed 193 | . 3 3 13 8 17 25 4 25 14 20 . 18 4 14 . . 25 Melee 9 | . . . . . . . . . . . . . . 5 . . 4 Guns 157 | . 3 3 12 8 17 25 4 25 13 13 . 9 4 5 . . 16 Cannons 4 | . . . . . . . . . . . . 3 . . . . 1 AOE 12 | . . . . . . . . . 1 7 . 4 . . . . . Classes Destroyed 19 | 1 2 . 4 2 1 2 . 2 . 1 . 1 . 1 . . 2 Worker 14 | . . . 1 1 . . . . 2 . . . . 6 . . 4 Builder 4 | . . . 1 2 . . . . . . . . . . . . 1 Tunneler 1 | . . . . 1 . . . . . . . . . . . . . Hauler 9 | . . . 3 . 3 . . . 2 . . . . 1 . . . Recycler 14 | 1 . 2 2 1 2 . . . 3 . . . . 3 . . . Operator 2 | . . . . . . . . . . . . . . 2 . . . Watcher 11 | . 1 . 3 . 4 . . . 2 . . . . 1 . . . Swarmer 54 | . 3 3 8 4 . 9 . 5 . 3 . 6 4 9 . . . Cutter 5 | . . . . . . 2 . . . 3 . . . . . . . Saboteur 1 | . . . . . . . . . . . . . . . . . 1 Grunt 80 | . . . 5 3 12 5 4 16 9 10 . 4 . 2 . . 10 Brawler 2 | . . . . . . . . 1 . . . . . . . . 1 Duelist 3 | . . . . 1 . . . . 2 . . . . . . . . Sentry 20 | . . . . . 5 7 . 1 1 2 . 1 . 1 . . 2 Specialist 8 | . . . . . . . . . . 2 . 3 . . . . 3 Hunter 3 | . . . . . . . . . 1 . . 2 . . . . . Programmer 15 | . . . . . . 2 . 2 1 . . 1 . 2 . . 7 Behemoth 1 | . . . . . . . . . . . . 1 . . . . . Executioner 1 | . . . . . . . . . . . . . . . . . 1 Thug 1 | . . . . . . . 1 . . . . . . . . . . Guerrilla 1 | . . . . . . . . 1 . . . . . . . . . Best Kill Streak 12 | 1 4 3 4 5 9 7 2 7 6 8 . 5 3 4 . . 12 Combat Bots Only 8 | . 3 3 3 4 8 7 2 7 5 8 . 5 3 4 . . 8 Max Kills in Single Turn 3 | 1 1 1 2 2 1 2 2 2 3 2 . 2 1 1 . . 3 Gunslinging 1 | . . . 1 . . 1 . 1 . . . . . . . . 1 Exploded 2 | . . . . . . . . . 1 2 . 1 . . . . . Melee 1 | . . . . . . . . . . . . . . 1 . . 1 Uniques/NPCs Destroyed . | . . . . . . . . . . . . . . . . . . Combat | -11 -10 -10 -9 -9 -8 -8 -7 -7 -7 -7 -6 -6 -6 -5 -5 -5 -4 -------- Run | Yrd Mat Min Mat Min Mat Gar Fac Gar Fac Gar Fac Low Low Fac Upp Upp Fac Hostile Shots Fired 1300 | . 11 14 138 8 27 77 5 79 56 104 . 287 53 108 3 . 330 Missed 405 | . 6 5 32 2 8 17 2 23 23 34 . 98 20 33 1 . 101 Damage Taken 13447 | . 39 68 948 65 313 764 50 695 759 802 . 2820 549 1339 39 . 4197 Core 2858 | . 7 10 306 . 29 138 . 77 23 100 . 547 83 381 . . 1157 Absorbed by Shields 240 | . . . . . . . . 51 66 81 . 42 . . . . . Ignored by Resistances 81 | . . . . . . . . . . . . . . . . . 81 Regen/Repaired (Parts) 119 | . . . . . 28 . . . 91 . . . . . . . . Core Remaining (%) 63 | 100 . 93 . 23 . 69 . . . 71 . . 25 . . 61 . Volleys Fired 560 | 7 10 24 47 33 52 57 12 49 35 41 . 59 8 53 . . 73 Largest 4 | 2 2 2 2 3 4 4 4 4 4 4 . 4 4 3 . . 4 Hottest 294 | 40 40 40 90 110 100 100 100 106 126 134 . 139 160 137 . . 294 Shots Fired 1584 | 14 20 48 80 51 206 225 48 192 116 96 . 141 25 121 1 . 200 Gun 1533 | 14 20 48 80 51 206 225 48 192 116 89 . 107 25 121 1 . 190 Cannon 22 | . . . . . . . . . . . . 12 . . . . 10 Launcher 22 | . . . . . . . . . . 7 . 15 . . . . . Special 7 | . . . . . . . . . . . . 7 . . . . . Kinetic 1341 | 14 20 48 40 29 206 225 48 192 116 89 . 113 18 101 . . 82 Thermal 144 | . . . . . . . . . . . . 6 7 20 1 . 110 Explosive 22 | . . . . . . . . . . 7 . 15 . . . . . Electromagnetic 70 | . . . 40 22 . . . . . . . . . . . . 8 Robot Hit Streak 25 | 4 3 7 11 11 25 20 8 9 15 11 . 10 4 12 . . 13 Robot Miss Streak 11 | 2 2 5 5 4 4 4 5 3 4 5 . 11 3 5 . . 3 Penetration Max 2 | . . . . . . . . 1 2 1 . . . 1 . . 1 Secondary Targets 37 | . 1 . 2 1 3 8 4 9 3 2 . . . . . . 4 Max Gunslinging Chain 2 | . 1 . 1 1 1 2 1 1 1 1 . . . . . . 1 Shots Hit Robots 960 | 9 11 23 50 30 121 113 25 110 66 56 . 80 11 102 . . 153 Core Hits 461 | 3 5 10 34 24 48 39 10 52 39 40 . 55 4 32 . . 66 Critical Kills 6 | . . 1 . . . . . 2 . 1 . . . 1 . . 1 Critical Parts Destroyed 13 | . . 1 . . . 1 . . . . . 1 . 7 . . 3 Critical Strikes 29 | . . 2 . . . 2 . 2 . 1 . 1 . 10 . . 11 Burn 8 | . . . . . . . . . . . . . . 2 . . 6 Destroy 11 | . . 2 . . . 2 . 2 . 1 . 1 . 1 . . 2 Blast 1 | . . . . . . . . . . . . . . . . . 1 Smash 9 | . . . . . . . . . . . . . . 7 . . 2 Melee Attacks 87 | . . . . . . 9 . . . 6 . . 1 48 1 . 22 Impact 54 | . . . . . . . . . . . . . 1 48 1 . 4 Slashing 18 | . . . . . . . . . . . . . . . . . 18 Piercing . | . . . . . . . . . . . . . . . . . . Sneak Attacks 20 | . . . . . . 9 . . . 6 . . . 5 . . . Combat Hostiles . | . . . . . . . . . . . . . . . . . . Follow-up Attacks 3 | . . . . . . . . . . . . . . . . . 3 Damage Inflicted 21584 | 66 92 182 927 418 2166 1937 475 2182 1747 1808 . 2007 267 3101 . . 4209 Guns 17149 | 66 92 182 844 374 2166 1937 475 2182 1647 937 . 1058 267 1504 . . 3418 Cannons 407 | . . . . . . . . . . . . 233 . . . . 174 Explosions 2157 | . . . 79 44 . . . . 100 871 . 716 . 347 . . . Melee 1867 | . . . . . . . . . . . . . . 1250 . . 617 Ramming 4 | . . . 4 . . . . . . . . . . . . . . Kinetic 14173 | 66 92 182 185 119 2166 1937 475 2182 1647 937 . 1142 231 1201 . . 1611 Thermal 2785 | . . . 79 44 . . . . . . . 149 36 650 . . 1827 Explosive 1687 | . . . . . . . . . 100 871 . 716 . . . . . Electromagnetic 1068 | . . . 659 255 . . . . . . . . . . . . 154 Impact 1344 | . . . . . . . . . . . . . . 1250 . . 94 Slashing 523 | . . . . . . . . . . . . . . . . . 523 Piercing . | . . . . . . . . . . . . . . . . . . Highest Corruption 10 | . . . . . . . . 2 2 2 . 6 8 5 1 1 10 Average Corruption 3 | . . . . . . . . 1 2 2 . 4 6 4 1 1 4 Corruption Purged 5 | . . . . . . . . . . . . . . 5 . . . Corruption Blocked . | . . . . . . . . . . . . . . . . . . Effects 139 | . . . . . . . . 11 24 11 . 24 16 23 6 . 24 Message Errors 35 | . . . . . . . . 2 7 2 . 4 4 7 2 . 7 Matter Fused 32 | . . . . . . . . 3 4 4 . 7 2 4 2 . 6 Heat Flow Errors 18 | . . . . . . . . 1 3 1 . 3 2 6 . . 2 Energy Discharges 8 | . . . . . . . . . 2 . . 2 1 2 . . 1 Parts Rejected 3 | . . . . . . . . . . . . . . 1 . . 2 Parts Fused 1 | . . . . . . . . . . . . 1 . . . . . Data Loss (minor) 19 | . . . . . . . . 3 3 3 . 2 2 2 1 . 3 Data Loss (major) 3 | . . . . . . . . . . . . 2 1 . . . . Misfires 9 | . . . . . . . . 2 3 . . 1 1 1 1 . . Alerts 5 | . . . . . . . . . 2 1 . 1 1 . . . . Weapon Failures 6 | . . . . . . . . . . . . 1 2 . . . 3 Overload Shots . | . . . . . . . . . . . . . . . . . . Overflow Damage 701 | . . . . . . . . . . 18 . 52 . 537 . . 94 Projectiles 4 | . . . . . . . . . . . . 4 . . . . . Explosions 92 | . . . . . . . . . . 18 . 48 . 26 . . . Melee 605 | . . . . . . . . . . . . . . 511 . . 94 Knockbacks 10 | . . . . . . . . . . . . 2 . 6 . . 2 Impact 7 | . . . . . . . . . . . . . . 6 . . 1 Kinetic 3 | . . . . . . . . . . . . 2 . . . . 1 Secondary . | . . . . . . . . . . . . . . . . . . Self-Inflicted Damage 331 | . . . 63 9 . . . . 205 . . 54 . . . . . Shots 7 | . . . 2 1 . . . . 3 . . 1 . . . . . Rammed . | . . . . . . . . . . . . . . . . . . Targets Rammed 3 | . . . 2 . . . . . . . . . . . . . 1 Kicked 3 | . . . 2 . . . . . . . . . . . . . 1 Crushed . | . . . . . . . . . . . . . . . . . . Highest Temperature 324 | . . . 189 147 324 203 189 211 256 122 . 317 226 253 38 . 236 Average Temperature 63 | . . . 58 52 82 70 73 57 69 42 . 77 59 51 38 . 54 Received Heat Transfer 2672 | . . . 90 24 135 126 27 261 55 258 . 591 102 108 18 . 877 Effects 1 | . . . . . . 1 . . . . . . . . . . . Interference 1 | . . . . . . 1 . . . . . . . . . . . Siege Activations . | . . . . . . . . . . . . . . . . . . Robots Corrupted 1 | . . . 1 . . . . . . . . . . . . . . Combat Hostiles 1 | . . . 1 . . . . . . . . . . . . . . Parts Fried 21 | . . . 5 1 . . . . . . . . . 13 . . 2 Impact Corruptions 21 | . . . . . . . . . . . . . . 19 . . 2 Robots Melted 4 | . . . . . . . . . . . . . . . . . 4 Combat Hostiles 4 | . . . . . . . . . . . . . . . . . 4 Parts Melted 20 | . . . . . . . 1 . . . . . . 3 . . 16 Heat Transferred 5543 | . . . 100 50 . . . . . . . 185 74 792 . . 4342 Parts Sabotaged . | . . . . . . . . . . . . . . . . . . Parts Stolen . | . . . . . . . . . . . . . . . . . . Parts Stripped . | . . . . . . . . . . . . . . . . . . Power Chain Reactions 3 | . . . 2 1 . . . . . . . . . . . . . Alert | -11 -10 -10 -9 -9 -8 -8 -7 -7 -7 -7 -6 -6 -6 -5 -5 -5 -4 ------- Run | Yrd Mat Min Mat Min Mat Gar Fac Gar Fac Gar Fac Low Low Fac Upp Upp Fac Peak Influence 1196 | 5 100 119 526 315 278 950 718 1196 628 791 427 . . 329 . . 307 Initial 627 | . 3 39 46 145 81 164 498 502 627 264 415 . . . . . 132 Average 330 | . 74 77 297 190 141 577 618 964 284 604 425 . . 198 . . 140 Maximum Alert Level 4 | . . . 2 1 1 3 3 4 2 3 2 . . 1 . . 1 Low Security (%) 40 | 100 100 100 24 44 78 6 . . 35 . . . . 42 . . 77 Level 1 28 | . . . 52 55 21 15 . . 44 7 . . . 57 . . 22 Level 2 18 | . . . 23 . . 47 54 16 20 56 100 . . . . . . Level 3 9 | . . . . . . 29 45 46 . 36 . . . . . . . Level 4 2 | . . . . . . . . 37 . . . . . . . . . Level 5 . | . . . . . . . . . . . . . . . . . . High Security . | . . . . . . . . . . . . . . . . . . Max Security . | . . . . . . . . . . . . . . . . . . Squads Dispatched 15 | . . . 1 . 2 . 1 . 4 . 1 . 1 2 . . 3 Investigation 3 | . . . . . 1 . . . 1 . 1 . . . . . . Extermination 4 | . . . . . . . . . 1 . . . . 1 . . 2 Reinforcement 7 | . . . 1 . 1 . 1 . 2 . . . . 1 . . 1 Assault 1 | . . . . . . . . . . . . . 1 . . . . Garrison . | . . . . . . . . . . . . . . . . . . Intercept . | . . . . . . . . . . . . . . . . . . Searches Triggered . | . . . . . . . . . . . . . . . . . . Construction Impeded . | . . . . . . . . . . . . . . . . . . Haulers Reinforced . | . . . . . . . . . . . . . . . . . . Active Scanning Responses . | . . . . . . . . . . . . . . . . . . Cargo Convoy Interrupts 1 | . . . . . . . . . . . . . . . . . 1 Stealth | -11 -10 -10 -9 -9 -8 -8 -7 -7 -7 -7 -6 -6 -6 -5 -5 -5 -4 --------- Run | Yrd Mat Min Mat Min Mat Gar Fac Gar Fac Gar Fac Low Low Fac Upp Upp Fac Distress Signals 8 | . 1 1 . . 3 . . . . . . . . . . . 3 Communications Jammed . | . . . . . . . . . . . . . . . . . . Distress Signals . | . . . . . . . . . . . . . . . . . . Times Spotted 308 | . 4 3 29 8 23 27 8 29 19 21 . 31 22 26 6 . 52 Peak Tracking Total 14 | . 4 2 9 4 5 7 4 5 5 4 . 12 12 5 3 . 14 Tactical Retreats 31 | . . . 3 . . 1 . 4 1 3 . 5 1 4 4 . 5 Traps | -11 -10 -10 -9 -9 -8 -8 -7 -7 -7 -7 -6 -6 -6 -5 -5 -5 -4 ------- Run | Yrd Mat Min Mat Min Mat Gar Fac Gar Fac Gar Fac Low Low Fac Upp Upp Fac Traps Triggered 13 | . . . . . . 4 . 3 3 3 . . . . . . . Indirectly . | . . . . . . . . . . . . . . . . . . Trap Hack Attempts . | . . . . . . . . . . . . . . . . . . Triggered . | . . . . . . . . . . . . . . . . . . Disarmed . | . . . . . . . . . . . . . . . . . . Reprogrammed . | . . . . . . . . . . . . . . . . . . Reused . | . . . . . . . . . . . . . . . . . . Traps Extracted . | . . . . . . . . . . . . . . . . . . Installed . | . . . . . . . . . . . . . . . . . . Triggered 7 | . . . . . . . . . . . . 7 . . . . . Machines | -11 -10 -10 -9 -9 -8 -8 -7 -7 -7 -7 -6 -6 -6 -5 -5 -5 -4 ---------- Run | Yrd Mat Min Mat Min Mat Gar Fac Gar Fac Gar Fac Low Low Fac Upp Upp Fac Machines Disabled 24 | . . . . 1 2 3 . . 11 1 . 1 1 3 . . 1 Max in Single Turn 5 | . . . . 1 1 1 . . 5 1 . 1 1 2 . . 1 Garrison Access 2 | . . . . . . . . . . . . . . 1 . . 1 Garrison Relay 1 | . . . . . . 1 . . . . . . . . . . . Machines Repaired . | . . . . . . . . . . . . . . . . . . Machines Dismantled . | . . . . . . . . . . . . . . . . . . Machines Sabotaged . | . . . . . . . . . . . . . . . . . . Overloaded Fab Kills . | . . . . . . . . . . . . . . . . . . Hacking | -11 -10 -10 -9 -9 -8 -8 -7 -7 -7 -7 -6 -6 -6 -5 -5 -5 -4 --------- Run | Yrd Mat Min Mat Min Mat Gar Fac Gar Fac Gar Fac Low Low Fac Upp Upp Fac Machines Accessed 42 | . 2 1 2 . 9 3 1 3 8 1 2 1 1 4 . . 4 Terminals 27 | . 1 1 2 . 6 3 . 3 5 1 1 . . 3 . . 1 Fabricators 1 | . . . . . . . . . . . . . . . . . 1 Repair Stations 3 | . . . . . 1 . . . 1 . . . . . . . 1 Recycling Units 3 | . 1 . . . 1 . . . . . 1 . . . . . . Scanalyzers 1 | . . . . . . . . . 1 . . . . . . . . Garrison Access 5 | . . . . . 1 . 1 . 1 . . . . 1 . . 1 Total Hacks 104 | . 6 3 8 . 28 6 1 4 25 2 4 1 4 6 . . 6 Successful 54 | . 2 . 3 . 15 4 1 . 15 1 1 1 4 4 . . 3 Failed 50 | . 4 3 5 . 13 2 . 4 10 1 3 . . 2 . . 3 Catastrophic 11 | . . 1 . . 1 . . 2 3 1 1 . . 2 . . . Database Lockouts . | . . . . . . . . . . . . . . . . . . Manual 57 | . 6 3 6 . 20 2 . . 9 1 4 1 . 5 . . . Terminals 69 | . 5 3 8 . 21 6 . 4 11 2 2 . . 5 . . 2 Fabricators 2 | . . . . . . . . . . . . . . . . . 2 Repair Stations 6 | . . . . . 3 . . . 2 . . . . . . . 1 Recycling Units 5 | . 1 . . . 2 . . . . . 2 . . . . . . Scanalyzers 11 | . . . . . . . . . 11 . . . . . . . . Garrison Access 6 | . . . . . 2 . 1 . 1 . . . . 1 . . 1 Terminal Hacks 21 | . . . 1 . 6 3 . . 3 1 . 1 4 1 . . 1 Record 5 | . . . . . . . . . . . . . 4 . . . 1 Robot Analysis 1 | . . . . . 1 . . . . . . . . . . . . Open Door 2 | . . . . . . 1 . . . . . 1 . . . . . Emergency Access Points 1 | . . . . . . 1 . . . . . . . . . . . Terminal Index 2 | . . . . . 1 . . . . . . . . 1 . . . Alert Level 2 | . . . . . 2 . . . . . . . . . . . . Unreport Threat 4 | . . . . . 1 . . . 3 . . . . . . . . Locate Traps 2 | . . . 1 . 1 . . . . . . . . . . . . Patrol Navigation 1 | . . . . . . . . . . 1 . . . . . . . Security Stations 1 | . . . . . . 1 . . . . . . . . . . . Fabricator Hacks 1 | . . . . . . . . . . . . . . . . . 1 Network Status 1 | . . . . . . . . . . . . . . . . . 1 Repair Station Hacks 4 | . . . . . 2 . . . 2 . . . . . . . . Scan Component 2 | . . . . . 1 . . . 1 . . . . . . . . Repair 2 | . . . . . 1 . . . 1 . . . . . . . . Recycling Unit Hacks . | . . . . . . . . . . . . . . . . . . Scanalyzer 7 | . . . . . . . . . 7 . . . . . . . . Insert Component 4 | . . . . . . . . . 4 . . . . . . . . Analyze 3 | . . . . . . . . . 3 . . . . . . . . Garrison Access Hacks 5 | . . . . . 1 . 1 . 1 . . . . 1 . . 1 Unlock Access 3 | . . . . . 1 . 1 . 1 . . . . . . . . Seal Access 2 | . . . . . . . . . . . . . . 1 . . 1 Unauthorized Hacks 16 | . 2 . 2 . 6 1 . . 2 . 1 . . 2 . . . Terminals 14 | . 1 . 2 . 6 1 . . 2 . . . . 2 . . . Botnet 14 | . 1 . 2 . 6 1 . . 2 . . . . 2 . . . Fabricators . | . . . . . . . . . . . . . . . . . . Repair Stations . | . . . . . . . . . . . . . . . . . . Recycling Units 2 | . 1 . . . . . . . . . 1 . . . . . . Reject 2 | . 1 . . . . . . . . . 1 . . . . . . Scanalyzers . | . . . . . . . . . . . . . . . . . . Garrison Access . | . . . . . . . . . . . . . . . . . . Data Cores Recovered . | . . . . . . . . . . . . . . . . . . Used . | . . . . . . . . . . . . . . . . . . Hacking Detections 31 | . 2 1 2 . 8 2 . 3 5 1 1 . . 3 . . 3 Full Trace Events 4 | . . 1 . . 1 . . . 1 . 1 . . . . . . Feedback Events . | . . . . . . . . . . . . . . . . . . Feedback Blocked . | . . . . . . . . . . . . . . . . . . Robot Schematics Acquired . | . . . . . . . . . . . . . . . . . . Robots Built . | . . . . . . . . . . . . . . . . . . Authchips . | . . . . . . . . . . . . . . . . . . Time . | . . . . . . . . . . . . . . . . . . Total Robot Build Rating . | . . . . . . . . . . . . . . . . . . Part Schematics Acquired 3 | . . . . . . . . . 3 . . . . . . . . Parts Built . | . . . . . . . . . . . . . . . . . . Authchips . | . . . . . . . . . . . . . . . . . . Time . | . . . . . . . . . . . . . . . . . . Total Part Build Rating . | . . . . . . . . . . . . . . . . . . Parts Repaired 2 | . . . . . 1 . . . 1 . . . . . . . . Time 121 | . . . . . 108 . . . 13 . . . . . . . . Parts Recycled . | . . . . . . . . . . . . . . . . . . Recycled Matter . | . . . . . . . . . . . . . . . . . . Retrieved Matter . | . . . . . . . . . . . . . . . . . . Retrieved Components . | . . . . . . . . . . . . . . . . . . Parts Scanalyzed 4 | . . . . . . . . . 4 . . . . . . . . Part Schematics Acquired 3 | . . . . . . . . . 3 . . . . . . . . Parts Damaged 1 | . . . . . . . . . 1 . . . . . . . . Bothacking | -11 -10 -10 -9 -9 -8 -8 -7 -7 -7 -7 -6 -6 -6 -5 -5 -5 -4 ------------ Run | Yrd Mat Min Mat Min Mat Gar Fac Gar Fac Gar Fac Low Low Fac Upp Upp Fac Used RIF Installer 2 | . . . . . . 1 . 1 . . . . . . . . . Zone Cloak 1 | . . . . . . . . 1 . . . . . . . . . Robots Hacked . | . . . . . . . . . . . . . . . . . . Non-combat . | . . . . . . . . . . . . . . . . . . Combat . | . . . . . . . . . . . . . . . . . . Robot Hacks Applied . | . . . . . . . . . . . . . . . . . . Relay Couplers Released 4 | . . . . . . 4 . . . . . . . . . . . Machine Destruction 4 | . . . . . . 4 . . . . . . . . . . . Fabnet Peak Effective % . | . . . . . . . . . . . . . . . . . . Robots Rewired 8 | . . . . . . 4 . . . 4 . . . . . . . Allies Hacked . | . . . . . . . . . . . . . . . . . . Hacks Repelled . | . . . . . . . . . . . . . . . . . . Allies | -11 -10 -10 -9 -9 -8 -8 -7 -7 -7 -7 -6 -6 -6 -5 -5 -5 -4 -------- Run | Yrd Mat Min Mat Min Mat Gar Fac Gar Fac Gar Fac Low Low Fac Upp Upp Fac Total Allies 8 | . . . . . . 4 . . . 4 . . . . . . . Largest Group 4 | . . . . . . 4 3 2 . 4 . . . . . . . Highest-Rated Group 120 | . . . . . . 120 95 61 . 48 . . . . . . . Highest-Rated Ally 39 | . . . . . . 39 39 39 . 12 . . . . . . . Total Orders 13 | . . . . . . . . . . . . . . . 9 4 . FOLLOW 1 | . . . . . . . . . . . . . . . 1 . . EXPLORE 6 | . . . . . . . . . . . . . . . 4 2 . RETURN 6 | . . . . . . . . . . . . . . . 4 2 . Ally Attacks 70 | . . . . . . 20 15 14 . 21 . . . . . . . Total Damage 1009 | . . . . . . 343 245 163 . 258 . . . . . . . Kills 11 | . . . . . . 2 3 4 . 2 . . . . . . . Allies Corrupted . | . . . . . . . . . . . . . . . . . . Allies Melted . | . . . . . . . . . . . . . . . . . . Intel | -11 -10 -10 -9 -9 -8 -8 -7 -7 -7 -7 -6 -6 -6 -5 -5 -5 -4 ------- Run | Yrd Mat Min Mat Min Mat Gar Fac Gar Fac Gar Fac Low Low Fac Upp Upp Fac Robot Analysis Total 1 | . . . . . 1 . . . . . . . . . . . . Derelict Logs Recovered 4 | . . 2 . . . . . . . . . 1 1 . . . . Drone Launches 6 | . . . . . . . . . . . . . . . 5 1 . Drone Recoveries 5 | . . . . . . . . . . . . . . . 3 2 . Decoded 0b10 Intel 28 | . . . . . . . . . . . . . . 14 . . 14 Traps 27 | . . . . . . . . . . . . . . 13 . . 14 Exits 1 | . . . . . . . . . . . . . . 1 . . . Exploration | -11 -10 -10 -9 -9 -8 -8 -7 -7 -7 -7 -6 -6 -6 -5 -5 -5 -4 ------------- Run | Yrd Mat Min Mat Min Mat Gar Fac Gar Fac Gar Fac Low Low Fac Upp Upp Fac Turns Passed 13289 | 77 218 372 553 697 1109 935 155 825 1805 790 347 1607 527 1424 338 72 1438 Spaces Moved 8741 | 45 158 255 234 456 667 629 71 520 1262 445 267 1171 404 984 248 45 880 Core 432 | 7 . . 7 . . . . . . . . 195 31 3 . . 189 Treads . | . . . . . . . . . . . . . . . . . . Legs 6764 | 38 158 255 76 244 667 629 71 520 1262 445 267 976 373 171 . . 612 Wheels 1099 | . . . . 126 . . . . . . . . . 601 248 45 79 Hover 193 | . . . . . . . . . . . . . . 193 . . . Flight 253 | . . . 151 86 . . . . . . . . . 16 . . . Fastest Speed 35 | 50 120 120 100 80 120 120 120 120 120 122 125 50 50 35 88 88 50 Average Speed 116 | 109 120 120 168 127 120 120 120 120 121 138 125 115 114 93 88 88 99 Slowest Speed 260 | 120 120 120 200 260 120 190 120 122 260 192 125 200 120 200 88 88 260 Overloaded Moves . | . . . . . . . . . . . . . . . . . . Propulsion Burnouts . | . . . . . . . . . . . . . . . . . . Robots Hopped . | . . . . . . . . . . . . . . . . . . Cave-ins Triggered . | . . . . . . . . . . . . . . . . . . Exploration Rate (%) 39 | 5 32 43 24 76 57 69 2 60 28 49 8 81 52 14 87 19 12 Regions Visited 17 Branch Regions 6 Pre-discovered Areas . | . . . . . . . . . . . . . . . . . . Known Exits Taken 6 | . . 1 . . 1 . 1 . 1 . . 1 . 1 . . . Unknown Exits Taken 8 | 1 1 . 1 1 . . . . . . 1 . 1 . 1 1 . Scrap Searched 10 | . . 1 . 1 . . . . . . . 6 1 . 1 . . Spaces Dug 13 | . . . . . . . . . . . . . 1 7 1 . 4 Terrain Destroyed 285 | . . . 8 5 . . . 1 83 34 . 97 2 33 1 . 21 Melee 9 | . . . . . . . . . . . . . 1 7 1 . . Projectile 47 | . . . . . . . . 1 13 8 . 4 1 . . . 20 AOE 227 | . . . 8 5 . . . . 70 26 . 92 . 26 . . . Terrain Rammed . | . . . . . . . . . . . . . . . . . . Walls Destroyed . | . . . . . . . . . . . . . . . . . . Machines Disabled . | . . . . . . . . . . . . . . . . . . Actions | -11 -10 -10 -9 -9 -8 -8 -7 -7 -7 -7 -6 -6 -6 -5 -5 -5 -4 --------- Run | Yrd Mat Min Mat Min Mat Gar Fac Gar Fac Gar Fac Low Low Fac Upp Upp Fac Total 10906 | 59 170 282 319 531 935 755 130 668 1457 543 279 1323 446 1301 367 77 1264 Wait 959 | . 1 1 17 15 163 32 32 41 88 12 8 33 19 149 102 33 213 Move 8726 | 44 157 254 233 455 667 628 71 519 1261 444 266 1170 403 983 247 44 880 Hop . | . . . . . . . . . . . . . . . . . . Pick Up 91 | 2 2 . 5 5 13 1 4 5 15 4 . 12 . 12 1 . 10 Fast Attach 132 | 5 . 1 7 6 8 3 2 5 19 . . 7 8 27 4 . 30 Attach 61 | 1 . 1 2 3 2 . 1 3 . 3 3 14 6 7 4 . 11 Detach 28 | . . 1 1 . . . . 1 2 . . 9 1 4 3 . 6 Swap 83 | . . . 1 3 7 12 3 14 12 12 2 10 . 1 . . 6 Drop 151 | . . . 4 11 23 8 5 21 25 7 . 9 . 17 5 . 16 Fire 560 | 7 10 24 47 33 52 57 12 49 35 41 . 59 8 53 . . 73 Melee 83 | . . . . . . 9 . . . 6 . . 1 48 1 . 18 Ram . | . . . . . . . . . . . . . . . . . . Kick 3 | . . . 2 . . . . . . . . . . . . . 1 Crush . | . . . . . . . . . . . . . . . . . . Escape Stasis 29 | . . . . . . 5 . 10 . 14 . . . . . . . Rewire . | . . . . . . . . . . . . . . . . . . Trap . | . . . . . . . . . . . . . . . . . . Miscellaneous . | . . . . . . . . . . . . . . . . . . Route ------- -11/Scrapyard -10/Materials -10/Mines (discovered 2 exits: *Mat x2) -9/Materials (discovered 2 exits: [*Min] / [*Sto]) -9/Mines -8/Materials (discovered 2 exits: *Fac / Gar) -8/Garrison (discovered 2 exits: *Fac x2) -7/Factory -7/Garrison (discovered 2 exits: *Fac x2) -7/Factory -7/Garrison (discovered 2 exits: *Fac x2) -6/Factory -6/Lower Caves -6/Lower Caves -5/Factory -5/Upper Caves -5/Upper Caves -4/Factory (discovered 1 exit: Arm) History --------- Turn | Location | Event 2 | -11/Scrapyard | Met Revision 17 9 | -11/Scrapyard | Discovered new exit (range 15) 78 | -11/Scrapyard | Entered Materials 251 | -10/Materials | Discovered new exit (range 16) 296 | -10/Materials | Entered Mines 307 | -10/Mines | Build established: Mutant 357 | -10/Mines | Found a damaged Exp. Sensor Array with a note attached 360 | -10/Mines | Found Prototype Device 360 | -10/Mines | Identified Exp. Sensor Array 500 | -10/Mines | Identified exit to Materials 552 | -10/Mines | Learned Materials emergency access door positions 639 | -10/Mines | Discovered exit to Materials (range 9) 668 | -10/Mines | Entered Materials 668 | -9/Materials | Evolved 2 slots: Weapon x2 676 | -9/Materials | Discovered new exit (range 3) 808 | -9/Materials | Core integrity fell below 50% 843 | -9/Materials | Lost 6 parts (2p2n2w) 910 | -9/Materials | Discovered new exit (range 15) 1221 | -9/Materials | Entered Mines 1709 | -9/Mines | Build established: Scavenger-Skirmisher 1911 | -9/Mines | Discovered new exit (range 7) 1918 | -9/Mines | Entered Materials 1918 | -8/Materials | Evolved 2 slots: Propulsion x2 2426 | -8/Materials | Build established: Scavenger-Gunner 2578 | -8/Materials | Destroyed 8 combat bots 2692 | -8/Materials | Repaired Exp. Sensor Array 2982 | -8/Materials | Discovered new exit (range 5) 3027 | -8/Materials | Identified exit to Garrison 3027 | -8/Materials | Entered Garrison 3061 | -8/Garrison | Triggered checkpoint 3093 | -8/Garrison | Learned Factory security intel 3145 | -8/Garrison | Triggered checkpoint 3181 | -8/Garrison | Destroyed 7 combat bots 3260 | -8/Garrison | Spotted B-75 Beast 3271 | -8/Garrison | Triggered checkpoint 3272 | -8/Garrison | Garrison Relay disabled 3525 | -8/Garrison | Triggered checkpoint 3576 | -8/Garrison | Discovered new exit (range 10) 3651 | -8/Garrison | Triggered checkpoint 3807 | -8/Garrison | Triggered checkpoint 3867 | -8/Garrison | Triggered checkpoint 3900 | -8/Garrison | Discovered new exit (range 14) 3944 | -8/Garrison | Installed Relay Interface Framework 3962 | -8/Garrison | Entered Factory 3962 | -7/Factory | Accompanied by 3 allies 3962 | -7/Factory | Evolved 2 slots: Utility x2 4117 | -7/Factory | Identified exit to Garrison 4117 | -7/Factory | Entered Garrison 4117 | -7/Garrison | Accompanied by 2 allies 4127 | -7/Garrison | Triggered checkpoint 4283 | -7/Garrison | Triggered checkpoint 4504 | -7/Garrison | Destroyed 7 combat bots 4578 | -7/Garrison | Discovered new exit (range 10) 4629 | -7/Garrison | Triggered checkpoint 4694 | -7/Garrison | Triggered checkpoint 4880 | -7/Garrison | Discovered new exit (range 12) 4921 | -7/Garrison | Expanded RIF knowledge: Zone Cloak 4942 | -7/Garrison | Entered Factory 4965 | -7/Factory | Build established: Scavenger-Tank 5282 | -7/Factory | Repaired Sml. Storage Unit 5557 | -7/Factory | Build established: Tank 6634 | -7/Factory | Build established: Scavenger-Tank 6695 | -7/Factory | Identified exit to Garrison 6747 | -7/Factory | Entered Garrison 7043 | -7/Garrison | Triggered checkpoint 7045 | -7/Garrison | Triggered checkpoint 7143 | -7/Garrison | Destroyed 8 combat bots 7213 | -7/Garrison | Discovered new exit (range 12) 7315 | -7/Garrison | Triggered checkpoint 7369 | -7/Garrison | Discovered new exit (range 15) 7537 | -7/Garrison | Entered Factory 7537 | -6/Factory | Evolved 2 slots: Propulsion x2 7866 | -6/Factory | Discovered new exit (range 15) 7884 | -6/Factory | Entered Lower Caves 7969 | -6/Lower Caves | Attracted the attention of an 0b10 checkpoint 8198 | -6/Lower Caves | Acquired the password to a Derelict Tinkerer's latest research 8206 | -6/Lower Caves | Found Prototype Special Weapon 8206 | -6/Lower Caves | Identified Molecular Deconstructor 8279 | -6/Lower Caves | Encountered a Warlord checkpoint 8291 | -6/Lower Caves | Identified exit to Lower Caves 8425 | -6/Lower Caves | Caught by Unaware searching for contraband prototypes 8532 | -6/Lower Caves | Caught by Unaware searching for contraband prototypes 8753 | -6/Lower Caves | Build established: Scavenger-Gunner 9130 | -6/Lower Caves | Spotted B-75 Beast 9143 | -6/Lower Caves | Destroyed B-75 Beast 9242 | -6/Lower Caves | Attracted the attention of an 0b10 base 9277 | -6/Lower Caves | Released all parts (6) 9306 | -6/Lower Caves | Lost 9 parts (1p3n2u3w) 9319 | -6/Lower Caves | Core integrity fell below 50% 9449 | -6/Lower Caves | Released all parts (2) 9478 | -6/Lower Caves | Lost 4 parts (2n1u1w) 9491 | -6/Lower Caves | Entered another Lower Caves area 9492 | -6/Lower Caves | Learned Factory emergency access door positions 9498 | -6/Lower Caves | Learned Factory emergency access door positions 9498 | -6/Lower Caves | Learned Research stockpile data 9498 | -6/Lower Caves | Learned Factory terminal intel 9931 | -6/Lower Caves | Discovered new exit (range 8) 9940 | -6/Lower Caves | Build established: Gunner 9984 | -6/Lower Caves | Attracted the attention of an 0b10 outpost 10018 | -6/Lower Caves | Entered Factory 10018 | -5/Factory | Evolved 2 slots: Power x1, Utility x1 10020 | -5/Factory | Loaded intel: 26 terminal locations 10035 | -5/Factory | Lost 3 parts (2n1w) 10287 | -5/Factory | Identified exit to Upper Caves 10330 | -5/Factory | Build established: Mutant 10573 | -5/Factory | Lost 4 parts (1p3n) 10648 | -5/Factory | Spotted B-75 Beast 11442 | -5/Factory | Entered Upper Caves 11759 | -5/Upper Caves | Discovered new exit (range 10) 11780 | -5/Upper Caves | Entered another Upper Caves area 11780 | -5/Upper Caves | Accompanied by 1 ally 11801 | -5/Upper Caves | Discovered new exit (range 25) 11827 | -5/Upper Caves | Build established: Scavenger-Mutant 11836 | -5/Upper Caves | Encountered a Warlord checkpoint 11852 | -5/Upper Caves | Entered Factory 11852 | -4/Factory | Evolved 2 slots: Utility x2 11853 | -4/Factory | Identified exit to Armory 12002 | -4/Factory | Lost 3 parts (2n1w) 12389 | -4/Factory | Build established: Scavenger-Skirmisher 12832 | -4/Factory | Lost 4 parts (1n1u2w) 12850 | -4/Factory | Cargo convoy interrupted 12861 | -4/Factory | Spotted Executioner 12884 | -4/Factory | Destroyed Executioner 12927 | -4/Factory | Destroyed 8 combat bots 12955 | -4/Factory | Core integrity fell below 50% 13022 | -4/Factory | Lost 21 parts (4p3n7u7w) 13186 | -4/Factory | Released all parts (5) 13259 | -4/Factory | System corruption reached 10% 13284 | -4/Factory | Core integrity fell below 20% 13290 | -4/Factory | Destroyed by Y-64 Sentinel with Wave Gun Last Messages --------------- 13201_ Acquired 3 matter. 13209_ Acquired 18 matter. 13216_ Acquired Imp. Terrain Scanner. 13218_ System corrupted: Matter fused (-8). 13218_ Acquired Hacking Suite. 13222_ Acquired Matter Neutralizer. 13235_ System corrupted: Matter fused (-10). 13256_ YIQLLJWOTUP MM&XM AVFNCT 13258_ Acquired 58 matter. 13270_ K-01 Serf cleans the Nuclear Reactor. 13273_ K-01 Serf cleans the Repair Station. 13275_ Acquired Matter Compressor. 13283_ Construction Platform disabled. 13285_ K-01 Serf cleans the Nuclear Reactor. 13285_ Nuclear Reactor explodes. 13285_ Imp. Terrain Scanner destroyed. 13285_ U-05 Engineer destroyed. 13285_ K-01 Serf destroyed. 13288_ Slug penetrates Wall. 13288_ K-01 Serf collects debris. Map ----- +----------------------------------------------------+ | ??# # ###+#############???????????? | | ??# # ??????????? | | ??############## ^ ?? ???????? | | ??????#????????# ?????????? | | ???????#???????# ^ ?????????? | | ???????????????# ^ ?????????? | | ???????????????##########+##########?????????????? | | ??????????#????????# #????????????????? | | ???????????######### #????????????????? | | ??????????# # """ """ #????????????????? | | ????????#?# """" # """ """ #????????????????? | | ??????????# """" """%""" #????????????????? | | ??????????# """" = #????????????????? | | ??????????# """" ! #??#??#??????????? | | ??????????# """" #????????????????? | | ??????????# """" "" "" #????????????????? | | ??????????# """ ""R"" #????????????????? | | ??????????# """" #????????????????? | | ??????????# %* #????????????????? | | ??????????# k!#######????????????????? | | ??????????# # # #??????????????????????? | | ########??# ###### #??????????????????????? | | # #????# #??????????????????????? | | / "" "" #????# #??????????????????????? | | # ""S"" #????# #??????????????????????? | | ####### # """" #????#@#??????????????????????? | | ??????# ?# #????# #??????????????????????? | | ??????# ??##########????# #??????????????????????? | | ????????????????????????# #??????????????????????? | | ??????????????? ???????? ! ??????????????????????? | | ???????????????????????? Y ??????????????????????? | | ????????????????????????! =??????????????????????? | | ????????????????????????###??????????????????????? | | ?????????????????????????????????????????????????? | | ?????????????????????????????????????????????????? | | ?????????????????????????????????????????????????? | | ?????????????????????????????????????????????????? | | ?????????????????????????????????????????????????? | | ?????????????????????????????????????????????????? | | ?????????????????????????????????????????????????? | | ?????????????????????????????????????????????????? | | ?????????????????????????????????????????????????? | | ?????????????????????????????????????????????????? | | ?????????????????????????????????????????????????? | | ?????????????????????????????????????????????????? | | ?????????????????????????????????????????????????? | | ?????????????????????????????????????????????????? | | ?????????????????????????????????????????????????? | | ?????????????????????????????????????????????????? | | ?????????????????????????????????????????????????? | +----------------------------------------------------+ Best States ------------- Heat Dissipation 119 Coolant Potential 80 Energy Generation 37 Energy Capacity 540 Matter Stores 300 Matter Capacity 500 Sight Range 16 Robot Scan Range 20 Terrain Scan Range 16 Terrain Scan Density 10 Armor Coverage 225 Resistance: KI 25 Evasion (%) 63 Launcher Accuracy 90 Target Analysis 6 Core Analysis 6 Recoil Reduction 6 Matter Filtering 30 Salvage Targeting 1 Offensive Hacking 22 Defensive Hacking 10 Item Schematics ----------------- Adv. Heat Sink | -7/Factory | Scanalyzed Gatling Laser | -7/Factory | Scanalyzed Imp. Datajack | -7/Factory | Scanalyzed Robot Schematics ------------------ None Fabricated ------------ Nothing Alien Tech Used ----------------- None Achievements -------------- Deconstruction Gun Specialist Infiltrator Challenges ------------ None Game ------ Seed StealthSeismicDatajack Manual? 0 Play Time 03:14:38 Cumulative 87.2 hours Start 2024.04.22 @ 11:50:33 End 2024.04.22 @ 15:13:15 Sessions 1 Manual Loads 0 Difficulty Rogue Special Mode None Game No. 37 Rogue 37 Adventurer 0 Explorer 0 Win Type - Total 0 Types 0/0/0/0/0/0/0/0/0 Lore% 33 Gallery% 49 Achievement% 37 Wizard Run 0 Options --------- Layout 0 ASCII 1 Keyboard 0 Movement Mouse Keybinds 0 Fullscreen 2 Font 18/Terminus Map View 76x50 Zoom Use 0% Tactical HUD 1 Map Filters NONE Filters NONE Steam 1 RUN: 93c6a344-1194-4c2d-b6c2-9c176825541f